[Event "Titled Tuesday Blitz March 01 Early 2022"]
[White "Volkov, Maksim"]
[Black "Niyazgulova, Marina"]
[WhiteFideId "54123070"]
[BlackFideId "24142573"]
[WhiteElo "2081"]
[BlackElo "2075"]
[Result "0-1"]
[Round "11"]
[TimeControl "180+1"]
[Date "2022.03.01"]
[WhiteClock "0:00:05"]
[BlackClock "0:00:09"]

1. d4 {[%clk 0:03:00]}  d5 {[%clk 0:02:59]} 2. c4 {[%clk 0:03:01]}  c6 {[%clk 0:02:59]} 3. Nf3 {[%clk 0:03:00]}  Nf6 {[%clk 0:02:59]} 4. g3 {[%clk 0:03:00]}  Bf5 {[%clk 0:02:53]} 5. Nc3 {[%clk 0:03:00]}  e6 {[%clk 0:02:53]} 6. Nh4 {[%clk 0:03:00]}  Bg6 {[%clk 0:02:52]} 7. Qb3 {[%clk 0:02:59]}  Qb6 {[%clk 0:02:52]} 8. c5 {[%clk 0:02:58]}  Qxb3 {[%clk 0:02:48]} 9. axb3 {[%clk 0:02:59]}  Na6 {[%clk 0:02:38]} 10. Nxg6 {[%clk 0:02:42]}  hxg6 {[%clk 0:02:37]} 11. e3 {[%clk 0:02:42]}  Nb4 {[%clk 0:02:35]} 12. Ra4 {[%clk 0:02:41]}  a5 {[%clk 0:02:31]} 13. Bd2 {[%clk 0:02:40]}  b6 {[%clk 0:01:54]} 14. cxb6 {[%clk 0:02:37]}  Nd7 {[%clk 0:01:55]} 15. b7 {[%clk 0:02:34]}  Ra7 {[%clk 0:01:55]} 16. Be2 {[%clk 0:02:09]}  Nc2+ {[%clk 0:01:42]} 17. Kd1 {[%clk 0:02:07]}  Nb4 {[%clk 0:01:42]} 18. e4 {[%clk 0:01:57]}  Bd6 {[%clk 0:01:40]} 19. h4 {[%clk 0:01:30]}  O-O {[%clk 0:01:32]} 20. h5 {[%clk 0:01:20]}  gxh5 {[%clk 0:01:32]} 21. Rxh5 {[%clk 0:01:19]}  Rb8 {[%clk 0:01:32]} 22. Nb1 {[%clk 0:01:16]}  Rbxb7 {[%clk 0:01:30]} 23. e5 {[%clk 0:01:12]}  Be7 {[%clk 0:01:26]} 24. Bc3 {[%clk 0:01:05]}  c5 {[%clk 0:01:20]} 25. Ra1 {[%clk 0:00:59]}  cxd4 {[%clk 0:01:13]} 26. Bxd4 {[%clk 0:00:59]}  Bc5 {[%clk 0:01:13]} 27. Bxc5 {[%clk 0:00:42]}  Nxc5 {[%clk 0:01:13]} 28. Nd2 {[%clk 0:00:43]}  Nbd3 {[%clk 0:01:08]} 29. Kc2 {[%clk 0:00:36]}  Nxf2 {[%clk 0:01:01]} 30. Rf1 {[%clk 0:00:29]}  Nfe4 {[%clk 0:00:53]} 31. Rfh1 {[%clk 0:00:21]}  Kf8 {[%clk 0:00:51]} 32. Rh8+ {[%clk 0:00:21]}  Ke7 {[%clk 0:00:51]} 33. Rc8 {[%clk 0:00:21]}  Rc7 {[%clk 0:00:43]} 34. Rhh8 {[%clk 0:00:20]}  Nd7+ {[%clk 0:00:26]} 35. Kd1 {[%clk 0:00:16]}  Rxc8 {[%clk 0:00:24]} 36. Rxc8 {[%clk 0:00:17]}  Nxd2 {[%clk 0:00:24]} 37. Kxd2 {[%clk 0:00:16]}  Nxe5 {[%clk 0:00:24]} 38. Bb5 {[%clk 0:00:16]}  Rb7 {[%clk 0:00:19]} 39. Ba4 {[%clk 0:00:15]}  Ra7 {[%clk 0:00:19]} 40. Ke3 {[%clk 0:00:14]}  Kf6 {[%clk 0:00:19]} 41. Kd4 {[%clk 0:00:14]}  Nf3+ {[%clk 0:00:19]} 42. Kc5 {[%clk 0:00:14]}  Re7 {[%clk 0:00:17]} 43. Rd8 {[%clk 0:00:11]}  Ne5 {[%clk 0:00:16]} 44. Kb5 {[%clk 0:00:11]}  Ra7 {[%clk 0:00:15]} 45. Kb6 {[%clk 0:00:10]}  Re7 {[%clk 0:00:15]} 46. Kxa5 {[%clk 0:00:11]}  Ng4 {[%clk 0:00:13]} 47. Kb6 {[%clk 0:00:11]}  e5 {[%clk 0:00:14]} 48. Rxd5 {[%clk 0:00:10]}  e4 {[%clk 0:00:14]} 49. Bb5 {[%clk 0:00:08]}  e3 {[%clk 0:00:14]} 50. Be2 {[%clk 0:00:08]}  Ne5 {[%clk 0:00:14]} 51. b4 {[%clk 0:00:07]}  Ng6 {[%clk 0:00:13]} 52. b5 {[%clk 0:00:06]}  Re6+ {[%clk 0:00:12]} 53. Kc5 {[%clk 0:00:06]}  Ne7 {[%clk 0:00:12]} 54. Rd4 {[%clk 0:00:05]}  Nc8 {[%clk 0:00:13]} 55. Rf4+ {[%clk 0:00:06]}  Kg6 {[%clk 0:00:13]} 56. b4 {[%clk 0:00:06]}  f5 {[%clk 0:00:13]} 57. Kd4 {[%clk 0:00:05]}  Kf6 {[%clk 0:00:12]} 58. Rf3 {[%clk 0:00:05]}  Re4+ {[%clk 0:00:10]} 59. Kd3 {[%clk 0:00:05]}  Rxb4 {[%clk 0:00:10]} 60. Kxe3 {[%clk 0:00:05]}  Nd6 {[%clk 0:00:09]} 61. Bd3 {[%clk 0:00:05]}  g6 {[%clk 0:00:08]} 62. Kd2 {[%clk 0:00:05]}  Nxb5 {[%clk 0:00:08]} 63. g4 {[%clk 0:00:06]}  Nd4 {[%clk 0:00:08]} 64. Rf4 {[%clk 0:00:05]}  Nb3+ {[%clk 0:00:08]} 65. Kc3 {[%clk 0:00:05]}  Rxf4 {[%clk 0:00:09]} 0-1


[Site "https://www.chess.com"]

[Event "Titled Tuesday Blitz March 01 Early 2022"]
[White "Wong, Yinn Long"]
[Black "Ponkratov, Pavel"]
[WhiteFideId "5707684"]
[BlackFideId "4157800"]
[WhiteElo "2055"]
[BlackElo "2487"]
[Result "0-1"]
[Round "11"]
[TimeControl "180+1"]
[Date "2022.03.01"]
[WhiteClock "0:00:02"]
[BlackClock "0:00:15"]

1. d4 {[%clk 0:03:00]}  Nf6 {[%clk 0:03:00]} 2. Bf4 {[%clk 0:03:01]}  c5 {[%clk 0:03:00]} 3. e3 {[%clk 0:03:01]}  g6 {[%clk 0:02:58]} 4. Nf3 {[%clk 0:02:53]}  Bg7 {[%clk 0:02:58]} 5. Nbd2 {[%clk 0:02:53]}  O-O {[%clk 0:02:58]} 6. Bd3 {[%clk 0:02:53]}  cxd4 {[%clk 0:02:55]} 7. exd4 {[%clk 0:02:53]}  d6 {[%clk 0:02:55]} 8. O-O {[%clk 0:02:53]}  Nc6 {[%clk 0:02:56]} 9. Re1 {[%clk 0:02:52]}  Nd5 {[%clk 0:02:51]} 10. Bg3 {[%clk 0:02:50]}  Nxd4 {[%clk 0:02:49]} 11. Nxd4 {[%clk 0:02:47]}  Bxd4 {[%clk 0:02:49]} 12. c3 {[%clk 0:02:40]}  Bg7 {[%clk 0:02:48]} 13. Bh4 {[%clk 0:02:13]}  Qc7 {[%clk 0:02:45]} 14. Bc4 {[%clk 0:01:57]}  Nf6 {[%clk 0:02:44]} 15. Qe2 {[%clk 0:01:54]}  e6 {[%clk 0:02:40]} 16. Bg3 {[%clk 0:01:48]}  Bd7 {[%clk 0:02:36]} 17. h3 {[%clk 0:01:41]}  Rac8 {[%clk 0:02:33]} 18. Rad1 {[%clk 0:01:40]}  Qc6 {[%clk 0:02:25]} 19. Bd3 {[%clk 0:01:31]}  Rfe8 {[%clk 0:02:18]} 20. c4 {[%clk 0:01:28]}  Qb6 {[%clk 0:02:16]} 21. b3 {[%clk 0:01:26]}  Nh5 {[%clk 0:02:05]} 22. Bh2 {[%clk 0:01:26]}  d5 {[%clk 0:01:52]} 23. Be5 {[%clk 0:01:12]}  Bxe5 {[%clk 0:01:48]} 24. Qxe5 {[%clk 0:01:13]}  Qc7 {[%clk 0:01:45]} 25. Qe3 {[%clk 0:00:57]}  Qc5 {[%clk 0:01:39]} 26. Qe5 {[%clk 0:00:47]}  Qc7 {[%clk 0:01:09]} 27. Qe3 {[%clk 0:00:45]}  Bc6 {[%clk 0:01:09]} 28. Bf1 {[%clk 0:00:39]}  b6 {[%clk 0:01:05]} 29. Nf3 {[%clk 0:00:39]}  dxc4 {[%clk 0:01:04]} 30. Bxc4 {[%clk 0:00:37]}  Bxf3 {[%clk 0:01:04]} 31. Qxf3 {[%clk 0:00:37]}  Rcd8 {[%clk 0:01:03]} 32. g3 {[%clk 0:00:32]}  Rxd1 {[%clk 0:01:02]} 33. Rxd1 {[%clk 0:00:33]}  Rd8 {[%clk 0:01:03]} 34. Rxd8+ {[%clk 0:00:25]}  Qxd8 {[%clk 0:01:03]} 35. Qb7 {[%clk 0:00:26]}  Qd4 {[%clk 0:01:02]} 36. Qxa7 {[%clk 0:00:21]}  Nf6 {[%clk 0:01:00]} 37. Qa8+ {[%clk 0:00:17]}  Kg7 {[%clk 0:01:00]} 38. Qf3 {[%clk 0:00:18]}  Qa1+ {[%clk 0:00:54]} 39. Kg2 {[%clk 0:00:16]}  Qxa2 {[%clk 0:00:54]} 40. Qb7 {[%clk 0:00:16]}  Kf8 {[%clk 0:00:26]} 41. Qxb6 {[%clk 0:00:14]}  Qd2 {[%clk 0:00:25]} 42. Qb8+ {[%clk 0:00:13]}  Kg7 {[%clk 0:00:24]} 43. Qe5 {[%clk 0:00:14]}  h6 {[%clk 0:00:21]} 44. g4 {[%clk 0:00:10]}  g5 {[%clk 0:00:21]} 45. Qe3 {[%clk 0:00:09]}  Qd6 {[%clk 0:00:20]} 46. Qc3 {[%clk 0:00:07]}  Qe7 {[%clk 0:00:19]} 47. b4 {[%clk 0:00:06]}  Qb7+ {[%clk 0:00:18]} 48. Kg1 {[%clk 0:00:05]}  Qe7 {[%clk 0:00:15]} 49. b5 {[%clk 0:00:05]}  Qc5 {[%clk 0:00:16]} 50. Kg2 {[%clk 0:00:02]}  Qb6 {[%clk 0:00:16]} 51. Qd3 {[%clk 0:00:03]}  Ne8 {[%clk 0:00:15]} 52. Qc3+ {[%clk 0:00:02]}  Kg8 {[%clk 0:00:15]} 53. Bd3 {[%clk 0:00:02]}  Nd6 {[%clk 0:00:15]} 54. Qc6 {[%clk 0:00:03]}  Qd4 {[%clk 0:00:15]} 55. Be2 {[%clk 0:00:03]}  Ne4 {[%clk 0:00:15]} 56. Bf3 {[%clk 0:00:01]}  Qxf2+ {[%clk 0:00:15]} 57. Kh1 {[%clk 0:00:02]}  Ng3# {[%clk 0:00:15]} 0-1


[Site "https://www.chess.com"]

[Event "Titled Tuesday Blitz March 01 Early 2022"]
[White "Zainullina, Nataliya"]
[Black "Prieto Aranguren, Alain"]
[WhiteFideId "4145488"]
[BlackFideId "2268906"]
[WhiteElo "2063"]
[BlackElo "2235"]
[Result "1-0"]
[Round "11"]
[TimeControl "180+1"]
[Date "2022.03.01"]
[WhiteClock "0:00:58"]
[BlackClock "0:00:33"]

1. Nf3 {[%clk 0:03:00]}  Nf6 {[%clk 0:02:59]} 2. c4 {[%clk 0:03:00]}  g6 {[%clk 0:03:00]} 3. b4 {[%clk 0:03:01]}  Bg7 {[%clk 0:03:01]} 4. Bb2 {[%clk 0:03:01]}  O-O {[%clk 0:03:00]} 5. e3 {[%clk 0:03:02]}  d6 {[%clk 0:03:01]} 6. Be2 {[%clk 0:03:02]}  e5 {[%clk 0:03:01]} 7. d3 {[%clk 0:03:00]}  Nc6 {[%clk 0:02:59]} 8. b5 {[%clk 0:02:58]}  Ne7 {[%clk 0:02:59]} 9. O-O {[%clk 0:02:59]}  Nd7 {[%clk 0:02:59]} 10. Nc3 {[%clk 0:02:54]}  f5 {[%clk 0:02:57]} 11. d4 {[%clk 0:02:47]}  e4 {[%clk 0:02:57]} 12. Nd2 {[%clk 0:02:47]}  Nf6 {[%clk 0:02:51]} 13. d5 {[%clk 0:02:41]}  Nd7 {[%clk 0:02:47]} 14. Nb3 {[%clk 0:02:40]}  Ne5 {[%clk 0:02:47]} 15. c5 {[%clk 0:02:29]}  Bd7 {[%clk 0:02:42]} 16. Rc1 {[%clk 0:02:06]}  dxc5 {[%clk 0:02:39]} 17. Nxc5 {[%clk 0:02:06]}  Bc8 {[%clk 0:02:35]} 18. a4 {[%clk 0:02:04]}  b6 {[%clk 0:02:29]} 19. Nb3 {[%clk 0:02:02]}  Bb7 {[%clk 0:02:25]} 20. Nd4 {[%clk 0:01:59]}  Nxd5 {[%clk 0:02:08]} 21. Qb3 {[%clk 0:01:43]}  Kh8 {[%clk 0:01:47]} 22. Ne6 {[%clk 0:01:42]}  Qf6 {[%clk 0:01:34]} 23. Nxf8 {[%clk 0:01:36]}  Nxc3 {[%clk 0:01:30]} 24. Rxc3 {[%clk 0:01:23]}  Rxf8 {[%clk 0:01:28]} 25. Rxc7 {[%clk 0:01:23]}  Bc8 {[%clk 0:01:07]} 26. Rfc1 {[%clk 0:01:08]}  Be6 {[%clk 0:01:05]} 27. Qc3 {[%clk 0:01:07]}  Rd8 {[%clk 0:00:37]} 28. Rxg7 {[%clk 0:00:57]}  Kxg7 {[%clk 0:00:34]} 29. Qxe5 {[%clk 0:00:58]}  Qxe5 {[%clk 0:00:34]} 30. Bxe5+ {[%clk 0:00:59]}  Kf7 {[%clk 0:00:33]} 31. Rc7+ {[%clk 0:00:58]}  Rd7 {[%clk 0:00:33]} 32. Rxd7+ {[%clk 0:00:57]}  Bxd7 {[%clk 0:00:33]} 33. Bb8 {[%clk 0:00:58]} 1-0


[Site "https://www.chess.com"]

[Event "Titled Tuesday Blitz March 01 Early 2022"]
[White "Zanette, Edgard Vinicius"]
[Black "Matveeva, Olga"]
[WhiteFideId "2109263"]
[BlackFideId "24107018"]
[WhiteElo "2182"]
[BlackElo "2083"]
[Result "0-1"]
[Round "11"]
[TimeControl "180+1"]
[Date "2022.03.01"]
[WhiteClock "0:00:24"]
[BlackClock "0:01:31"]

1. e4 {[%clk 0:03:00]}  e6 {[%clk 0:02:59]} 2. d4 {[%clk 0:03:00]}  d5 {[%clk 0:02:59]} 3. exd5 {[%clk 0:03:00]}  exd5 {[%clk 0:03:00]} 4. c4 {[%clk 0:03:01]}  Nf6 {[%clk 0:02:58]} 5. Nf3 {[%clk 0:03:00]}  Bb4+ {[%clk 0:02:55]} 6. Bd2 {[%clk 0:02:54]}  Bxd2+ {[%clk 0:02:54]} 7. Nbxd2 {[%clk 0:02:54]}  O-O {[%clk 0:02:54]} 8. Be2 {[%clk 0:02:54]}  dxc4 {[%clk 0:02:51]} 9. Nxc4 {[%clk 0:02:53]}  Re8 {[%clk 0:02:50]} 10. O-O {[%clk 0:02:52]}  c6 {[%clk 0:02:49]} 11. Nfe5 {[%clk 0:02:48]}  Be6 {[%clk 0:02:48]} 12. Ne3 {[%clk 0:02:34]}  Nbd7 {[%clk 0:02:47]} 13. Nf3 {[%clk 0:01:48]}  Nb6 {[%clk 0:02:44]} 14. Qd3 {[%clk 0:01:42]}  Nbd5 {[%clk 0:02:42]} 15. Nxd5 {[%clk 0:01:41]}  Nxd5 {[%clk 0:02:43]} 16. Qd2 {[%clk 0:01:37]}  Qf6 {[%clk 0:02:41]} 17. Rfe1 {[%clk 0:01:23]}  Rad8 {[%clk 0:02:40]} 18. Rad1 {[%clk 0:01:22]}  Nf4 {[%clk 0:02:38]} 19. b3 {[%clk 0:01:19]}  Nxe2+ {[%clk 0:02:34]} 20. Rxe2 {[%clk 0:01:19]}  Bg4 {[%clk 0:02:31]} 21. Rxe8+ {[%clk 0:01:04]}  Rxe8 {[%clk 0:02:32]} 22. Re1 {[%clk 0:01:02]}  Rd8 {[%clk 0:02:29]} 23. Ne5 {[%clk 0:01:02]}  Be6 {[%clk 0:02:26]} 24. Qb4 {[%clk 0:00:57]}  Bc8 {[%clk 0:02:07]} 25. h3 {[%clk 0:00:51]}  h6 {[%clk 0:02:06]} 26. Qa5 {[%clk 0:00:49]}  Rxd4 {[%clk 0:01:57]} 27. Qxa7 {[%clk 0:00:48]}  Rd2 {[%clk 0:01:53]} 28. a4 {[%clk 0:00:35]}  Kh7 {[%clk 0:01:50]} 29. Qe3 {[%clk 0:00:32]}  Rb2 {[%clk 0:01:39]} 30. Qd4 {[%clk 0:00:25]}  Rxb3 {[%clk 0:01:32]} 31. Qd8 {[%clk 0:00:24]}  Qxd8 {[%clk 0:01:31]} 0-1


[Site "https://www.chess.com"]

[Event "Titled Tuesday Blitz March 01 Early 2022"]
[White "Zavgorodniy, Sergiy"]
[Black "Ahmadzada, Ahmad"]
[WhiteFideId "14110148"]
[BlackFideId "13413007"]
[WhiteElo "2420"]
[BlackElo "2228"]
[Result "0-1"]
[Round "11"]
[TimeControl "180+1"]
[Date "2022.03.01"]
[WhiteClock "0:01:42"]
[BlackClock "0:00:30"]

1. e4 {[%clk 0:03:00]}  d5 {[%clk 0:02:58]} 2. exd5 {[%clk 0:02:56]}  Qxd5 {[%clk 0:02:59]} 3. Nc3 {[%clk 0:02:55]}  Qd8 {[%clk 0:02:59]} 4. g3 {[%clk 0:02:55]}  Nf6 {[%clk 0:02:59]} 5. Bg2 {[%clk 0:02:55]}  Nc6 {[%clk 0:02:59]} 6. Nge2 {[%clk 0:02:55]}  e5 {[%clk 0:02:58]} 7. O-O {[%clk 0:02:54]}  Bc5 {[%clk 0:02:57]} 8. d3 {[%clk 0:02:54]}  h6 {[%clk 0:02:56]} 9. h3 {[%clk 0:02:53]}  O-O {[%clk 0:02:56]} 10. Be3 {[%clk 0:02:53]}  Bb6 {[%clk 0:02:56]} 11. Qd2 {[%clk 0:02:51]}  Re8 {[%clk 0:02:50]} 12. g4 {[%clk 0:02:48]}  Bxg4 {[%clk 0:02:19]} 13. hxg4 {[%clk 0:02:37]}  Nxg4 {[%clk 0:02:18]} 14. Bf3 {[%clk 0:02:26]}  Nxe3 {[%clk 0:01:55]} 15. fxe3 {[%clk 0:02:23]}  Qg5+ {[%clk 0:01:54]} 16. Kh1 {[%clk 0:02:18]}  Bxe3 {[%clk 0:01:31]} 17. Qe1 {[%clk 0:02:18]}  Nd4 {[%clk 0:01:12]} 18. Ne4 {[%clk 0:02:04]}  Qg6 {[%clk 0:00:58]} 19. Nxd4 {[%clk 0:02:03]}  exd4 {[%clk 0:00:56]} 20. Qg3 {[%clk 0:02:01]}  Rxe4 {[%clk 0:00:37]} 21. Qxg6 {[%clk 0:02:00]}  Rh4+ {[%clk 0:00:37]} 22. Kg2 {[%clk 0:02:01]}  fxg6 {[%clk 0:00:38]} 23. Bxb7 {[%clk 0:01:56]}  Rd8 {[%clk 0:00:38]} 24. Rf3 {[%clk 0:01:53]}  Rg4+ {[%clk 0:00:35]} 25. Kh3 {[%clk 0:01:52]}  Rf4 {[%clk 0:00:35]} 26. Rxf4 {[%clk 0:01:50]}  Bxf4 {[%clk 0:00:36]} 27. Rf1 {[%clk 0:01:50]}  g5 {[%clk 0:00:34]} 28. Kg4 {[%clk 0:01:47]}  g6 {[%clk 0:00:34]} 29. Re1 {[%clk 0:01:45]}  h5+ {[%clk 0:00:33]} 30. Kf3 {[%clk 0:01:44]}  Be3 {[%clk 0:00:33]} 31. Ke4 {[%clk 0:01:43]}  g4 {[%clk 0:00:31]} 32. Rf1 {[%clk 0:01:43]}  Rf8 {[%clk 0:00:30]} 33. Bd5+ {[%clk 0:01:42]}  Kg7 {[%clk 0:00:30]} 0-1


[Site "https://www.chess.com"]

[Event "Titled Tuesday Blitz March 01 Early 2022"]
[White "Zheenbekov, Nurgazy"]
[Black "Pajeken, Jakob Leon"]
[WhiteFideId "13800485"]
[BlackFideId "12942839"]
[WhiteElo "1959"]
[BlackElo "2351"]
[Result "1/2-1/2"]
[Round "11"]
[TimeControl "180+1"]
[Date "2022.03.01"]
[WhiteClock "0:01:27"]
[BlackClock "0:01:44"]

1. e4 {[%clk 0:02:59]}  e5 {[%clk 0:02:59]} 2. Nf3 {[%clk 0:02:58]}  Nc6 {[%clk 0:02:58]} 3. Bb5 {[%clk 0:02:58]}  a6 {[%clk 0:02:58]} 4. Ba4 {[%clk 0:02:58]}  Nf6 {[%clk 0:02:56]} 5. O-O {[%clk 0:02:58]}  Be7 {[%clk 0:02:55]} 6. Re1 {[%clk 0:02:58]}  b5 {[%clk 0:02:55]} 7. Bb3 {[%clk 0:02:59]}  d6 {[%clk 0:02:56]} 8. c3 {[%clk 0:02:59]}  O-O {[%clk 0:02:55]} 9. h3 {[%clk 0:02:59]}  Na5 {[%clk 0:02:53]} 10. Bc2 {[%clk 0:02:59]}  c5 {[%clk 0:02:54]} 11. d3 {[%clk 0:02:57]}  Nc6 {[%clk 0:02:53]} 12. Nbd2 {[%clk 0:02:57]}  Be6 {[%clk 0:02:52]} 13. Nf1 {[%clk 0:02:56]}  h6 {[%clk 0:02:49]} 14. Ng3 {[%clk 0:02:55]}  Re8 {[%clk 0:02:48]} 15. a4 {[%clk 0:02:53]}  Bf8 {[%clk 0:02:46]} 16. d4 {[%clk 0:02:53]}  cxd4 {[%clk 0:02:41]} 17. cxd4 {[%clk 0:02:52]}  exd4 {[%clk 0:02:22]} 18. Nxd4 {[%clk 0:02:52]}  Nxd4 {[%clk 0:02:22]} 19. Qxd4 {[%clk 0:02:52]}  Qb8 {[%clk 0:02:18]} 20. axb5 {[%clk 0:02:35]}  axb5 {[%clk 0:02:15]} 21. Bxh6 {[%clk 0:02:25]}  Rxa1 {[%clk 0:02:06]} 22. Rxa1 {[%clk 0:02:24]}  gxh6 {[%clk 0:02:05]} 23. Qxf6 {[%clk 0:02:23]}  Bg7 {[%clk 0:02:05]} 24. Qh4 {[%clk 0:02:23]}  Bxb2 {[%clk 0:02:05]} 25. Rb1 {[%clk 0:02:22]}  Bg7 {[%clk 0:02:03]} 26. Nh5 {[%clk 0:02:21]}  Qd8 {[%clk 0:02:02]} 27. Qg3 {[%clk 0:02:15]}  Qg5 {[%clk 0:02:01]} 28. Qxg5 {[%clk 0:02:11]}  hxg5 {[%clk 0:02:02]} 29. Nxg7 {[%clk 0:02:11]}  Kxg7 {[%clk 0:02:02]} 30. Rxb5 {[%clk 0:02:11]}  Rc8 {[%clk 0:02:02]} 31. Bd3 {[%clk 0:02:01]}  Kf6 {[%clk 0:02:00]} 32. Rb6 {[%clk 0:01:55]}  Ke5 {[%clk 0:01:57]} 33. Rb5+ {[%clk 0:01:53]}  Rc5 {[%clk 0:01:55]} 34. f3 {[%clk 0:01:39]}  Rxb5 {[%clk 0:01:49]} 35. Bxb5 {[%clk 0:01:38]}  d5 {[%clk 0:01:50]} 36. exd5 {[%clk 0:01:38]}  Bxd5 {[%clk 0:01:51]} 37. Kf2 {[%clk 0:01:38]}  f5 {[%clk 0:01:51]} 38. g3 {[%clk 0:01:33]}  f4 {[%clk 0:01:45]} 39. Bd3 {[%clk 0:01:29]}  fxg3+ {[%clk 0:01:43]} 40. Kxg3 {[%clk 0:01:29]}  Kf6 {[%clk 0:01:44]} 41. h4 {[%clk 0:01:27]}  gxh4+ {[%clk 0:01:43]} 42. Kxh4 {[%clk 0:01:27]}  Bxf3 {[%clk 0:01:44]} 1/2-1/2


[Site "https://www.chess.com"]

[Event "Titled Tuesday Blitz March 01 Early 2022"]
[White "Zhigalko, Sergei"]
[Black "Matinian, Nikita"]
[WhiteFideId "13502956"]
[BlackFideId "24129100"]
[WhiteElo "2662"]
[BlackElo "2422"]
[Result "1-0"]
[Round "11"]
[TimeControl "180+1"]
[Date "2022.03.01"]
[WhiteClock "0:00:05"]
[BlackClock "0:00:44"]

1. e4 {[%clk 0:03:00]}  c5 {[%clk 0:03:00]} 2. Nf3 {[%clk 0:03:01]}  d6 {[%clk 0:03:01]} 3. d4 {[%clk 0:03:01]}  cxd4 {[%clk 0:03:01]} 4. Qxd4 {[%clk 0:03:02]}  Nf6 {[%clk 0:03:02]} 5. Nc3 {[%clk 0:03:02]}  Nc6 {[%clk 0:03:01]} 6. Bb5 {[%clk 0:03:02]}  Bd7 {[%clk 0:03:02]} 7. Bxc6 {[%clk 0:03:02]}  Bxc6 {[%clk 0:02:58]} 8. Bg5 {[%clk 0:03:03]}  Qb6 {[%clk 0:02:56]} 9. Bxf6 {[%clk 0:02:55]}  gxf6 {[%clk 0:02:55]} 10. Qxb6 {[%clk 0:02:56]}  axb6 {[%clk 0:02:55]} 11. Nd4 {[%clk 0:02:56]}  Rg8 {[%clk 0:02:53]} 12. g3 {[%clk 0:02:55]}  h5 {[%clk 0:02:43]} 13. O-O-O {[%clk 0:02:28]}  h4 {[%clk 0:02:41]} 14. b3 {[%clk 0:02:24]}  Kd7 {[%clk 0:02:32]} 15. a4 {[%clk 0:02:18]}  Rg4 {[%clk 0:02:27]} 16. h3 {[%clk 0:02:05]}  Rg8 {[%clk 0:02:22]} 17. g4 {[%clk 0:02:06]}  Bh6+ {[%clk 0:02:22]} 18. Kb1 {[%clk 0:02:02]}  Rgc8 {[%clk 0:02:14]} 19. Rhe1 {[%clk 0:01:49]}  Bf4 {[%clk 0:02:14]} 20. Nce2 {[%clk 0:01:45]}  Bh6 {[%clk 0:01:51]} 21. f3 {[%clk 0:01:32]}  e6 {[%clk 0:01:46]} 22. c4 {[%clk 0:01:29]}  Ke7 {[%clk 0:01:41]} 23. Nc3 {[%clk 0:01:21]}  Bf4 {[%clk 0:01:38]} 24. Nce2 {[%clk 0:01:14]}  Be5 {[%clk 0:01:29]} 25. Nxc6+ {[%clk 0:01:06]}  bxc6 {[%clk 0:01:24]} 26. f4 {[%clk 0:01:07]}  b5 {[%clk 0:01:24]} 27. fxe5 {[%clk 0:01:06]}  fxe5 {[%clk 0:01:25]} 28. Nc3 {[%clk 0:00:53]}  bxc4 {[%clk 0:01:21]} 29. bxc4 {[%clk 0:00:54]}  Rcb8+ {[%clk 0:01:22]} 30. Kc2 {[%clk 0:00:54]}  Rb4 {[%clk 0:01:17]} 31. Kd3 {[%clk 0:00:51]}  Rb2 {[%clk 0:01:18]} 32. Rd2 {[%clk 0:00:48]}  Rb3 {[%clk 0:01:16]} 33. Ra1 {[%clk 0:00:25]}  Rab8 {[%clk 0:01:07]} 34. a5 {[%clk 0:00:24]}  f5 {[%clk 0:01:07]} 35. gxf5 {[%clk 0:00:20]}  exf5 {[%clk 0:01:08]} 36. exf5 {[%clk 0:00:19]}  d5 {[%clk 0:01:08]} 37. cxd5 {[%clk 0:00:13]}  cxd5 {[%clk 0:01:09]} 38. Kc2 {[%clk 0:00:13]}  d4 {[%clk 0:01:05]} 39. Ne4 {[%clk 0:00:09]}  Rxh3 {[%clk 0:01:05]} 40. Rg2 {[%clk 0:00:09]}  d3+ {[%clk 0:01:00]} 41. Kc3 {[%clk 0:00:07]}  Rc8+ {[%clk 0:00:58]} 42. Kb4 {[%clk 0:00:08]}  Re3 {[%clk 0:00:53]} 43. Nc3 {[%clk 0:00:04]}  d2 {[%clk 0:00:53]} 44. Nd5+ {[%clk 0:00:04]}  Kf7 {[%clk 0:00:51]} 45. Nxe3 {[%clk 0:00:05]}  Rc1 {[%clk 0:00:52]} 46. Ra2 {[%clk 0:00:05]}  Rb1+ {[%clk 0:00:50]} 47. Kc3 {[%clk 0:00:04]}  h3 {[%clk 0:00:51]} 48. Rh2 {[%clk 0:00:04]}  d1=Q {[%clk 0:00:43]} 49. Nxd1 {[%clk 0:00:04]}  Rxd1 {[%clk 0:00:44]} 50. Rxh3 {[%clk 0:00:05]} 1-0


[Site "https://www.chess.com"]